[Event "WJCC U20 Girls 2019"]
[Site "New Delhi"]
[Date "2019.10.17"]
[Round "3.24"]
[White "Lakshmi C"]
[Black "Pychova, Nela"]
[Result "1/2-1/2"]
[ECO "B90"]
[WhiteElo "1859"]
[BlackElo "2178"]
[Annotator "ChessBase"]
[PlyCount "75"]
[EventDate "2019.10.15"]
[EventType "swiss"]
[EventCountry "IND"]
[SourceTitle "playchess.com"]
[Source "ChessBase"]
[SourceQuality "1"]
[TimeControl "40/5400+30:1800+30"]

1. e4 {[%emt 0:00:00]} c5 {[%emt 0:00:09]} 2. Nf3 {[%emt 0:00:08]} d6 {[%emt 0:01:25]} 3. d4 {[%emt 0:00:10]} cxd4 {[%emt 0:00:11]} 4. Nxd4 {[%emt 0:00:06]} Nf6 {[%emt 0:00:12]} 5. Nc3 {[%emt 0:02:03]} a6 {[%emt 0:08:27]} 6. a4 {[%emt 0:00:30]} Qc7 {[%emt 0:00:30]} 7. Be2 {[%emt 0:00:30]} b6 {[%emt 0:00:30]} 8. O-O {[%emt 0:00:30]} Bb7 {[%emt 0:00:30]} 9. Bf3 Nbd7 {[%emt 0:18:17]} 10. Nd5 {[%emt 0:30:38]} Nxd5 {[%emt 0:07:39]} 11. exd5 {[%emt 0:00:51]} Nf6 {[%emt 0:00:28]} 12. Nf5 {[%emt 0:00:53]} h6 {[%emt 0:09:34]} 13. Ra3 {[%emt 0:08:28]} g6 {[%emt 0:01:29]} 14. Ne3 {[%emt 0:00:33]} Bg7 {[%emt 0:00:57]} 15. c4 {[%emt 0:02:21]} O-O {[%emt 0:02:09]} 16. Be2 {[%emt 0:03:10]} Bc8 {[%emt 0:03:24]} 17. f4 {[%emt 0:04:15]} Qc5 {[%emt 0:03:47]} 18. Qe1 {[%emt 0:04:26]} a5 {[%emt 0:03:51]} 19. Kh1 {[%emt 0:01:05]} Ne4 {[%emt 0:03:31]} 20. Bd3 {[%emt 0:16:01]} f5 {[%emt 0:03:27]} 21. Nc2 {[%emt 0:08:28]} Ba6 {[%emt 0:03:15]} 22. b3 {[%emt 0:01:30]} Nf6 {[%emt 0:08:16]} 23. Be3 {[%emt 0:04:30]} Qc7 {[%emt 0:00:24]} 24. Nd4 {[%emt 0:00:49]} Bc8 {[%emt 0:00:13]} 25. h3 {[%emt 0:05:58]} Bd7 {[%emt 0:01:56]} 26. Ra2 {[%emt 0:02:32]} Rae8 {[%emt 0:01:44]} 27. Bg1 {[%emt 0:00:35]} e5 {[%emt 0:09:11]} 28. dxe6 {[%emt 0:00:29]} Bc8 {[%emt 0:00:30]} 29. Re2 {[%emt 0:01:02]} Re7 {[%emt 0:01:03]} 30. g4 {[%emt 0:01:51]} Bb7+ {[%emt 0:01:26]} 31. Kh2 {[%emt 0:00:02]} Be4 {[%emt 0:04:10]} 32. Bxe4 fxe4 {[%emt 0:01:10]} 33. f5 {[%emt 0:01:14]} gxf5 {[%emt 0:01:56]} 34. Rxf5 {[%emt 0:00:10]} d5+ {[%emt 0:00:36]} 35. Kh1 {[%emt 0:00:52]} dxc4 {[%emt 0:00:24]} 36. Rc2 {[%emt 0:00:09]} Qb7 {[%emt 0:00:31]} 37. Rxc4 {[%emt 0:00:17]} e3+ {[%emt 0:00:14]} 38. Kh2 {[%emt 0:01:04]} 1/2-1/2

[Event "WJCC U20 Girls 2019"]
[Site "New Delhi"]
[Date "2019.10.17"]
[Round "3.26"]
[White "Nilssen, Ellen Fredericia"]
[Black "Meghna, C H"]
[Result "1/2-1/2"]
[ECO "C01"]
[WhiteElo "2137"]
[BlackElo "1956"]
[Annotator "ChessBase"]
[PlyCount "52"]
[EventDate "2019.10.15"]
[EventType "swiss"]
[EventCountry "IND"]
[SourceTitle "playchess.com"]
[Source "ChessBase"]
[SourceQuality "1"]
[TimeControl "40/5400+30:1800+30"]

1. e4 {[%emt 0:00:00]} e6 {[%emt 0:00:00]} 2. d4 {[%emt 0:00:00]} d5 {[%emt 0:00:00]} 3. exd5 {[%emt 0:00:00]} exd5 {[%emt 0:00:00]} 4. c4 {[%emt 0:00:01]} Nf6 {[%emt 0:05:17]} 5. Nc3 {[%emt 0:00:09]} Be7 {[%emt 0:09:46]} 6. Bd3 {[%emt 0:00:49]} dxc4 {[%emt 0:02:00]} 7. Bxc4 {[%emt 0:00:43]} O-O {[%emt 0:00:23]} 8. Nge2 {[%emt 0:00:09]} Nbd7 {[%emt 0:02:18]} 9. O-O {[%emt 0:00:37]} Nb6 {[%emt 0:00:22]} 10. Bb3 {[%emt 0:00:30]} c6 {[%emt 0:00:58]} 11. Qd3 {[%emt 0:11:07]} Nbd5 {[%emt 0:08:53]} 12. a3 {[%emt 0:00:13]} Be6 {[%emt 0:19:10]} 13. Bc2 {[%emt 0:01:13]} g6 {[%emt 0:03:57]} 14. Ng3 {[%emt 0:08:29]} Qc7 {[%emt 0:13:41]} 15. Bg5 {[%emt 0:12:15]} Rad8 {[%emt 0:05:29]} 16. Rfe1 {[%emt 0:04:16]} Rfe8 {[%emt 0:04:13]} 17. Rad1 {[%emt 0:05:52]} Rd7 {[%emt 0:06:40]} 18. Nge4 {[%emt 0:10:12]} Nxe4 {[%emt 0:08:45]} 19. Nxe4 {[%emt 0:01:44]} Bxg5 {[%emt 0:00:40]} 20. Nxg5 {[%emt 0:00:17]} Rde7 {[%emt 0:00:01]} 21. Ne4 {[%emt 0:11:33]} Bf5 {[%emt 0:01:50]} 22. f3 {[%emt 0:00:09]} Qf4 {[%emt 0:02:04]} 23. Qd2 {[%emt 0:05:03]} Qh4 {[%emt 0:02:59]} 24. Qf2 {[%emt 0:07:30]} Qf4 {[%emt 0:00:20]} 25. Qd2 {[%emt 0:00:34]} Qh4 {[%emt 0:00:01]} 26. Qf2 {[%emt 0:00:17]} Qf4 {[%emt 0:00:01]} 1/2-1/2

[Event "WJCC U20 Girls 2019"]
[Site "New Delhi"]
[Date "2019.10.17"]
[Round "3.29"]
[White "Kairbekova, Amina"]
[Black "Mungunzul, Bat-Erdene"]
[Result "1-0"]
[ECO "C54"]
[WhiteElo "2096"]
[BlackElo "1912"]
[Annotator "NA"]
[PlyCount "81"]
[EventDate "2019.10.15"]
[EventType "swiss"]
[EventCountry "IND"]
[SourceTitle "playchess.com"]
[Source "ChessBase"]
[SourceQuality "1"]
[TimeControl "40/5400+30:1800+30"]

1. e4 {[%emt 0:00:00]} e5 {[%emt 0:00:00]} 2. Nf3 {[%emt 0:00:00]} Nc6 {[%emt 0:00:00]} 3. Bc4 {[%emt 0:00:00]} Bc5 {[%emt 0:00:08]} 4. c3 {[%emt 0:00:00]} Nf6 {[%emt 0:00:09]} 5. d4 {[%emt 0:00:00]} exd4 {[%emt 0:00:14]} 6. e5 {[%emt 0:00:01]} d5 {[%emt 0:00:32]} 7. Be2 {[%emt 0:00:05]} Ne4 {[%emt 0:03:08]} 8. cxd4 {[%emt 0:00:05]} Bb4+ {[%emt 0:00:40]} 9. Bd2 {[%emt 0:00:04]} Nxd2 {[%emt 0:01:10]} 10. Nbxd2 {[%emt 0:00:04]} O-O {[%emt 0:05:48]} 11. O-O {[%emt 0:00:16]} Bg4 {[%emt 0:07:08]} 12. a3 {[%emt 0:04:02] C54: Giuoco Piano: 4 c3 Nf6, main lines with 5 d4 and 5 d3} (12. h3 Bxf3 13. Nxf3 Ba5 14. Rc1 Bb6 15. Bb5 Ne7 16. Bd3 Ng6 17. g3 Re8 18. Kg2 Nf8 19. Bb1 Ne6 {1-0 (37) Nevednichy,V (2532)-Pisu,R (2254) Olanesti 2018}) 12... Be7 {[%emt 0:01:14]} 13. Nb3 {[%emt 0:03:48]} a5 {[%emt 0:01:37]} 14. Rc1 {[%emt 0:02:20]} f6 $146 {[%emt 0:10:42]} ({Predecessor:} 14... Nb8 15. Ne1 Bf5 16. Bd3 Bxd3 17. Nxd3 Nd7 18. f4 f5 19. Re1 c6 {1-0 (32) Vucinic,G (2294)-Besedes,D (1974) Stari Banovci 2013}) 15. h3 {[%emt 0:03:30]} Bh5 {[%emt 0:01:44]} 16. Nc5 {[%emt 0:06:24]} Bxc5 {[%emt 0:00:44]} 17. Rxc5 {[%emt 0:00:07]} Ne7 {[%emt 0:01:35]} 18. exf6 {[%emt 0:17:27]} Rxf6 {[%emt 0:00:59]} 19. Ne5 {[%emt 0:00:15]} Bxe2 {[%emt 0:03:57]} 20. Qxe2 {[%emt 0:00:03]} c6 {[%emt 0:01:04]} 21. Ng4 {[%emt 0:04:11]} Rg6 {[%emt 0:09:10]} 22. Qe5 {[%emt 0:00:15]} Qd7 $11 {[%emt 0:10:58]} 23. Re1 {[%emt 0:03:33]} Nf5 {[%emt 0:00:40]} 24. Rxa5 {[%emt 0:03:20]} Rf8 {[%emt 0:00:14]} 25. Qf4 {[%emt 0:20:32]} Qd8 {[%emt 0:03:12]} 26. Ra4 {[%emt 0:09:21]} Nh4 {[%emt 0:02:17]} 27. Qe5 {[%emt 0:04:06]} h5 {[%emt 0:03:21]} 28. Qxh5 {[%emt 0:00:46]} Rf5 {[%emt 0:00:13]} 29. Ra8 {[%emt 0:00:46]} Qxa8 {[%emt 0:00:22]} 30. Qxh4 {[%emt 0:00:02]} Qf8 {[%emt 0:03:18]} 31. Re7 {[%emt 0:02:15]} b6 {[%emt 0:01:39]} 32. Rd7 {[%emt 0:02:26]} Rd6 {[%emt 0:01:49]} 33. Rb7 {[%emt 0:07:58]} c5 {[%emt 0:15:12]} 34. Qg3 {[%emt 0:02:00]} Rf4 {[%emt 0:05:37]} 35. Ne5 {[%emt 0:03:38]} Rxd4 {[%emt 0:01:18]} 36. Ng6 {[%emt 0:00:13]} Qf6 {[%emt 0:00:56]} 37. Ne7+ {[%emt 0:00:20]} Kh8 {[%emt 0:01:19]} 38. Nf5 {[%emt 0:01:26]} Rd1+ {[%emt 0:00:18]} 39. Kh2 {[%emt 0:00:07]} Rd8 {[%emt 0:01:16]} 40. Rxg7 {[%emt 0:02:05]} Re8 {[%emt 0:03:33]} 41. Rg6 {[%emt 0:30:53]} 1-0

[Event "WJCC U20 Girls 2019"]
[Site "New Delhi"]
[Date "2019.10.17"]
[Round "3.30"]
[White "Nastase, Andreea-Cristina"]
[Black "Ananya, Suresh"]
[Result "1-0"]
[ECO "A40"]
[WhiteElo "2077"]
[BlackElo "1896"]
[Annotator "NA"]
[PlyCount "47"]
[EventDate "2019.10.15"]
[EventType "swiss"]
[EventCountry "IND"]
[SourceTitle "playchess.com"]
[Source "ChessBase"]
[SourceQuality "1"]
[TimeControl "40/5400+30:1800+30"]

1. d4 {[%emt 0:00:00]} g6 {[%emt 0:00:00]} 2. c4 {[%emt 0:00:00]} Bg7 {[%emt 0:00:00]} 3. Nc3 {[%emt 0:00:00]} c5 {[%emt 0:00:27]} 4. d5 {[%emt 0:01:28]} d6 {[%emt 0:00:46]} 5. e4 {[%emt 0:00:33]} Nf6 {[%emt 0:01:22]} 6. f3 {[%emt 0:00:29]} O-O {[%emt 0:01:18]} 7. Bg5 {[%emt 0:00:14]} Nbd7 {[%emt 0:00:46]} 8. Nh3 {[%emt 0:00:19]} a6 {[%emt 0:00:57]} 9. Qd2 {[%emt 0:00:11]} Ne5 {[%emt 0:01:11]} 10. Nf2 {[%emt 0:00:09]} Rb8 {[%emt 0:01:16]} 11. Be2 {[%emt 0:04:10]} Qa5 {[%emt 0:14:56]} 12. O-O {[%emt 0:09:31]} b5 {[%emt 0:07:55]} 13. cxb5 {[%emt 0:00:05]} axb5 {[%emt 0:00:07]} 14. Bh6 {[%emt 0:01:29]} b4 {[%emt 0:07:11]} 15. Bxg7 {[%emt 0:00:57]} Kxg7 {[%emt 0:00:30]} 16. Ncd1 {[%emt 0:00:05]} Ba6 {[%emt 0:12:09]} 17. Bxa6 {[%emt 0:01:32]} Qxa6 {[%emt 0:04:13]} 18. Ne3 {[%emt 0:00:16]} Rfc8 {[%emt 0:01:02]} 19. f4 {[%emt 0:00:32]} Nc4 {[%emt 0:03:44]} 20. Qe2 {[%emt 0:01:04]} e6 {[%emt 0:18:26]} 21. Qxc4 {[%emt 0:00:44]} Qxc4 {[%emt 0:00:23]} 22. Nxc4 {[%emt 0:00:02]} exd5 {[%emt 0:00:12]} 23. exd5 {[%emt 0:00:03]} Nxd5 {[%emt 0:00:11]} 24. Ne4 {[%emt 0:00:26]} 1-0

[Event "WJCC U20 Girls 2019"]
[Site "New Delhi"]
[Date "2019.10.17"]
[Round "3.31"]
[White "Zhang, Xiao"]
[Black "Bhagyashree Patil"]
[Result "1/2-1/2"]
[ECO "D02"]
[WhiteElo "2053"]
[BlackElo "1802"]
[Annotator "NA RC"]
[PlyCount "96"]
[EventDate "2019.10.15"]
[EventType "swiss"]
[EventCountry "IND"]
[SourceTitle "playchess.com"]
[Source "ChessBase"]
[SourceQuality "1"]
[TimeControl "40/5400+30:1800+30"]

1. d4 {[%emt 0:00:00]} d5 {[%emt 0:00:00]} 2. Nf3 {[%emt 0:00:00]} Nf6 {[%emt 0:00:00]} 3. g3 {[%emt 0:00:00]} e6 {[%emt 0:00:54]} 4. Bg2 {[%emt 0:00:00]} Be7 {[%emt 0:00:27]} 5. O-O {[%emt 0:00:03]} O-O {[%emt 0:00:05]} 6. c4 {[%emt 0:00:04]} b6 {[%emt 0:01:18]} 7. cxd5 {[%emt 0:05:26]} exd5 {[%emt 0:00:59]} 8. Nc3 {[%emt 0:00:07]} Bb7 {[%emt 0:00:05]} 9. Bf4 {[%emt 0:00:31]} Nbd7 {[%emt 0:06:43]} 10. Rc1 {[%emt 0:00:35]} c6 {[%emt 0:05:23]} 11. Ne5 {[%emt 0:05:59]} Re8 {[%emt 0:12:42]} 12. e4 {[%emt 0:02:28] E18: Queen's Indian: Old Main Line (4 g3 Bb7 5 Bg2 Be7 6 0-0 0-0 7 Nc3)} (12. Qa4 Nxe5 13. Bxe5 Bd6 14. Bxf6 Qxf6 15. e4 b5 16. Qc2 b4 17. e5 Qd8 18. Na4 Bf8 19. Nc5 Bc8 {1-0 (35) Teske,H (2538)-Seils,J (2350) Germany 2013}) 12... dxe4 {[%emt 0:04:35]} 13. Nxe4 {[%emt 0:00:18]} Nxe5 {[%emt 0:02:09]} 14. dxe5 {[%emt 0:08:21]} Nd5 {[%emt 0:06:05]} 15. Qa4 $146 {[%emt 0:04:39]} ({Predecessor:} 15. Qg4 Qc8 16. Qh5 Qe6 17. Bh3 Nxf4 18. gxf4 Qg6+ 19. Qxg6 hxg6 {1-0 (49) Schulz,K (2324)-Plotkin,V (2248) Dresden 2018}) 15... Nxf4 {[%emt 0:04:24]} 16. gxf4 {[%emt 0:00:03]} Qc7 {[%emt 0:00:42]} 17. Rfd1 {[%emt 0:04:51]} Red8 {[%emt 0:05:28]} 18. Rxd8+ {[%emt 0:00:19]} Rxd8 {[%emt 0:00:26]} 19. Ng3 {[%emt 0:00:05]} Bc5 {[%emt 0:02:24]} 20. b4 {[%emt 0:08:03]} Rd4 {[%emt 0:07:21]} 21. Qxa7 {[%emt 0:00:12]} Rxb4 {[%emt 0:00:04]} 22. Ne4 {[%emt 0:00:05]} h6 {[%emt 0:00:38]} 23. a3 {[%emt 0:02:00]} Rb5 {[%emt 0:04:20]} 24. Nxc5 {[%emt 0:11:45]} bxc5 {[%emt 0:00:43]} 25. Qa4 {[%emt 0:00:10]} Bc8 {[%emt 0:02:36]} 26. Qe4 {[%emt 0:00:46]} Ra5 {[%emt 0:02:37]} 27. a4 {[%emt 0:01:35]} Be6 {[%emt 0:01:02]} 28. Qxc6 {[%emt 0:04:46]} Qxc6 {[%emt 0:00:14]} 29. Bxc6 {[%emt 0:00:05]} Bb3 {[%emt 0:00:09]} 30. Rc3 {[%emt 0:00:22]} c4 {[%emt 0:00:53]} 31. Bb5 {[%emt 0:01:58]} Ra8 {[%emt 0:02:15]} 32. Bxc4 {[%emt 0:05:31]} Bxa4 {[%emt 0:00:13]} 33. f5 {[%emt 0:00:13]} Re8 {[%emt 0:02:47]} 34. e6 {[%emt 0:02:06]} fxe6 {[%emt 0:00:04]} 35. fxe6 {[%emt 0:00:06]} Re7 {[%emt 0:02:27]} 36. Kg2 {[%emt 0:01:28]} g5 {[%emt 0:03:53]} 37. Kf3 {[%emt 0:00:37]} Bc6+ {[%emt 0:00:15]} 38. Kg4 {[%emt 0:01:38]} Be4 {[%emt 0:00:51]} 39. Re3 {[%emt 0:00:27]} Bg6 {[%emt 0:00:18]} 40. h4 {[%emt 0:01:39]} gxh4 {[%emt 0:00:30]} 41. f4 {[%emt 0:30:24]} Kg7 {[%emt 0:30:43]} 42. f5 {[%emt 0:00:18]} Bh7 {[%emt 0:02:04]} 43. Bd3 {[%emt 0:03:48]} Kf6 {[%emt 0:00:39]} 44. Rf3 {[%emt 0:03:02]} Rg7+ {[%emt 0:03:29]} 45. Kxh4 {[%emt 0:00:17]} Rg1 {[%emt 0:00:07]} 46. Re3 {[%emt 0:00:48]} Rg7 {[%emt 0:00:38]} 47. Kh5 {[%emt 0:07:22]} Ra7 {[%emt 0:07:47]} 48. Bc2 {[%emt 0:00:00]} Rc7 $14 {[%emt 0:00:00]} 1/2-1/2

[Event "WJCC U20 Girls 2019"]
[Site "New Delhi"]
[Date "2019.10.17"]
[Round "3.33"]
[White "Song, Yuxin"]
[Black "Arushi Kotwal"]
[Result "1-0"]
[ECO "A48"]
[WhiteElo "2292"]
[BlackElo "1657"]
[Annotator "ChessBase"]
[PlyCount "93"]
[EventDate "2019.10.15"]
[EventType "swiss"]
[EventCountry "IND"]
[SourceTitle "playchess.com"]
[Source "ChessBase"]
[SourceQuality "1"]
[TimeControl "40/5400+30:1800+30"]

1. d4 {[%emt 0:00:00]} Nf6 {[%emt 0:00:00]} 2. Nf3 {[%emt 0:00:00]} g6 {[%emt 0:00:00]} 3. Nbd2 {[%emt 0:00:00]} d5 {[%emt 0:00:00]} 4. e3 {[%emt 0:00:00]} Bg7 {[%emt 0:00:00]} 5. b4 {[%emt 0:00:02]} c6 {[%emt 0:00:14]} 6. a4 {[%emt 0:01:53]} a5 {[%emt 0:04:12]} 7. b5 {[%emt 0:00:08]} c5 {[%emt 0:03:09]} 8. c3 {[%emt 0:15:56]} Nbd7 {[%emt 0:09:29]} 9. Ba3 {[%emt 0:04:22]} cxd4 {[%emt 0:07:32]} 10. cxd4 {[%emt 0:01:55]} O-O {[%emt 0:02:30]} 11. Qc2 {[%emt 0:02:14]} Nb6 {[%emt 0:06:24]} 12. Bd3 {[%emt 0:01:09]} Be6 {[%emt 0:03:29]} 13. Ng5 {[%emt 0:06:25]} Bd7 {[%emt 0:01:46]} 14. Bc5 {[%emt 0:09:21]} h6 {[%emt 0:03:51]} 15. Ngf3 {[%emt 0:00:35]} Be6 {[%emt 0:01:04]} 16. Qb3 {[%emt 0:10:36]} Ne4 {[%emt 0:04:39]} 17. Rc1 {[%emt 0:00:59]} Rc8 {[%emt 0:04:35]} 18. O-O {[%emt 0:00:25]} Nxc5 {[%emt 0:24:48]} 19. Rxc5 {[%emt 0:07:11]} Nd7 {[%emt 0:01:22]} 20. Rxc8 {[%emt 0:01:07]} Qxc8 {[%emt 0:00:07]} 21. Qa3 {[%emt 0:00:07]} Bf6 {[%emt 0:00:41]} 22. Rc1 {[%emt 0:01:50]} Qa8 {[%emt 0:01:32]} 23. e4 {[%emt 0:01:13]} dxe4 {[%emt 0:04:55]} 24. Nxe4 {[%emt 0:00:20]} Rc8 {[%emt 0:04:07]} 25. Re1 {[%emt 0:03:42]} Re8 {[%emt 0:02:56]} 26. Nxf6+ {[%emt 0:03:43]} exf6 {[%emt 0:00:56]} 27. Qc1 {[%emt 0:00:05]} Kg7 {[%emt 0:00:15]} 28. Qc7 {[%emt 0:00:12]} Rc8 {[%emt 0:01:08]} 29. Qd6 {[%emt 0:06:44]} Qb8 {[%emt 0:00:26]} 30. Rxe6 {[%emt 0:00:15]} Rc1+ {[%emt 0:03:44]} 31. Bf1 {[%emt 0:00:07]} fxe6 {[%emt 0:02:57]} 32. Qxd7+ {[%emt 0:00:05]} Kh8 {[%emt 0:01:03]} 33. Qxe6 {[%emt 0:05:13]} Qd8 {[%emt 0:00:23]} 34. Qe3 {[%emt 0:00:21]} Ra1 {[%emt 0:01:03]} 35. Qxh6+ {[%emt 0:00:21]} Kg8 {[%emt 0:00:05]} 36. Qxg6+ {[%emt 0:00:10]} Kf8 {[%emt 0:00:15]} 37. h4 {[%emt 0:00:34]} Qe7 {[%emt 0:00:39]} 38. h5 {[%emt 0:00:24]} Qg7 {[%emt 0:00:23]} 39. Qf5 {[%emt 0:00:38]} Rxa4 {[%emt 0:00:42]} 40. Qc8+ {[%emt 0:00:08]} Ke7 {[%emt 0:00:23]} 41. Qxb7+ {[%emt 0:30:43]} Kf8 {[%emt 0:30:06]} 42. Qc8+ {[%emt 0:00:13]} Ke7 {[%emt 0:00:11]} 43. b6 {[%emt 0:00:17]} Rb4 {[%emt 0:01:05]} 44. b7 {[%emt 0:00:46]} Qf8 {[%emt 0:00:15]} 45. Qc5+ {[%emt 0:00:16]} Kf7 {[%emt 0:00:17]} 46. Bc4+ {[%emt 0:00:06]} Kg7 {[%emt 0:00:13]} 47. h6+ {[%emt 0:00:04]} 1-0

[Event "WJCC U20 Girls 2019"]
[Site "New Delhi"]
[Date "2019.10.17"]
[Round "3.34"]
[White "Tamarozi, Isabelle"]
[Black "Obregon Garcia, Roxangel"]
[Result "0-1"]
[ECO "B51"]
[WhiteElo "2029"]
[BlackElo "2267"]
[Annotator "ChessBase"]
[PlyCount "94"]
[EventDate "2019.10.15"]
[EventType "swiss"]
[EventCountry "IND"]
[SourceTitle "playchess.com"]
[Source "ChessBase"]
[SourceQuality "1"]
[TimeControl "40/5400+30:1800+30"]

1. e4 {[%emt 0:00:33]} c5 {[%emt 0:00:00]} 2. Nf3 {[%emt 0:00:44]} d6 {[%emt 0:00:00]} 3. Bb5+ {[%emt 0:03:27]} Nd7 {[%emt 0:00:11]} 4. d4 {[%emt 0:00:30]} a6 {[%emt 0:05:51]} 5. Bxd7+ {[%emt 0:02:16]} Bxd7 {[%emt 0:00:28]} 6. O-O {[%emt 0:11:46]} cxd4 {[%emt 0:06:25]} 7. Qxd4 {[%emt 0:01:29]} e5 {[%emt 0:11:46]} 8. Qd3 {[%emt 0:02:29]} Rc8 {[%emt 0:01:08]} 9. c4 {[%emt 0:02:55]} b5 {[%emt 0:07:43]} 10. b3 {[%emt 0:02:07]} bxc4 {[%emt 0:03:40]} 11. bxc4 {[%emt 0:00:49]} Be6 {[%emt 0:01:54]} 12. Na3 {[%emt 0:04:31]} Nf6 {[%emt 0:06:47]} 13. Bd2 {[%emt 0:15:47]} Nd7 {[%emt 0:06:34]} 14. Rfd1 {[%emt 0:07:13]} Nc5 {[%emt 0:00:54]} 15. Qe2 {[%emt 0:03:33]} Be7 {[%emt 0:02:19]} 16. Rac1 {[%emt 0:08:41]} O-O {[%emt 0:01:28]} 17. Nc2 f5 {[%emt 0:12:49]} 18. exf5 {[%emt 0:05:59]} Bxf5 {[%emt 0:01:12]} 19. Bb4 {[%emt 0:06:28]} Bg4 {[%emt 0:08:52]} 20. Bxc5 {[%emt 0:01:53]} Rxc5 {[%emt 0:00:47]} 21. Nce1 {[%emt 0:02:40]} Qa8 {[%emt 0:02:43]} 22. Qe3 {[%emt 0:06:38]} Rfc8 {[%emt 0:03:36]} 23. h3 {[%emt 0:04:06]} Bh5 {[%emt 0:03:30]} 24. Rd2 {[%emt 0:04:19]} Rxc4 {[%emt 0:02:45]} 25. Rxc4 {[%emt 0:00:27]} Rxc4 {[%emt 0:00:01]} 26. Nxe5 {[%emt 0:00:55]} dxe5 {[%emt 0:00:43]} 27. Qxe5 {[%emt 0:00:14]} Re4 {[%emt 0:00:15]} 28. Qxh5 {[%emt 0:00:49]} Rxe1+ {[%emt 0:00:05]} 29. Kh2 {[%emt 0:00:06]} Bf6 {[%emt 0:02:32]} 30. Qg4 {[%emt 0:00:57]} h5 {[%emt 0:03:35]} 31. Qf5 {[%emt 0:00:36]} Qe4 {[%emt 0:00:36]} 32. Qxe4 {[%emt 0:00:30]} Rxe4 {[%emt 0:00:01]} 33. f3 {[%emt 0:00:29]} Rb4 {[%emt 0:00:28]} 34. Rd5 {[%emt 0:00:29]} Ra4 {[%emt 0:01:23]} 35. Rxh5 {[%emt 0:00:16]} Rxa2 {[%emt 0:01:15]} 36. h4 {[%emt 0:00:35]} Kf7 {[%emt 0:00:19]} 37. Kh3 {[%emt 0:00:20]} Ke6 {[%emt 0:00:42]} 38. f4 {[%emt 0:00:22]} a5 {[%emt 0:00:26]} 39. g4 {[%emt 0:00:32]} a4 {[%emt 0:01:53]} 40. Ra5 {[%emt 0:00:19]} Ra3+ {[%emt 0:00:24]} 41. Kg2 {[%emt 0:30:16]} Bxh4 {[%emt 0:31:20]} 42. g5 {[%emt 0:00:26]} g6 {[%emt 0:00:00]} 43. Ra6+ {[%emt 0:00:00]} Kf5 {[%emt 0:00:00]} 44. Rf6+ {[%emt 0:00:00]} Kg4 {[%emt 0:00:00]} 45. Rf8 {[%emt 0:00:00]} Ra2+ {[%emt 0:00:00]} 46. Kf1 {[%emt 0:00:00]} Kf3 {[%emt 0:00:00]} 47. Kg1 {[%emt 0:00:00]} Ra1+ {[%emt 0:00:00]} 0-1

[Event "WJCC U20 Girls 2019"]
[Site "New Delhi"]
[Date "2019.10.17"]
[Round "3.37"]
[White "Levitan, Ronit"]
[Black "Tanishka Kotia"]
[Result "1/2-1/2"]
[ECO "B01"]
[WhiteElo "1893"]
[BlackElo "2090"]
[Annotator "NA"]
[PlyCount "63"]
[EventDate "2019.10.15"]
[EventType "swiss"]
[EventCountry "IND"]
[SourceTitle "playchess.com"]
[Source "ChessBase"]
[SourceQuality "1"]
[TimeControl "40/5400+30:1800+30"]

1. e4 {[%emt 0:00:17]} d5 {[%emt 0:00:00]} 2. exd5 {[%emt 0:00:06]} Nf6 {[%emt 0:00:00]} 3. c4 {[%emt 0:00:24]} e6 {[%emt 0:00:00]} 4. dxe6 {[%emt 0:00:05]} Bxe6 {[%emt 0:00:00]} 5. Nf3 {[%emt 0:00:25]} Nc6 {[%emt 0:04:02]} 6. Be2 {[%emt 0:02:18]} Bc5 {[%emt 0:10:10]} 7. O-O {[%emt 0:00:37]} O-O {[%emt 0:09:33]} 8. d3 {[%emt 0:03:51]} Nd4 {[%emt 0:04:46]} 9. Nxd4 {[%emt 0:01:29]} Bxd4 {[%emt 0:00:47]} 10. Nd2 {[%emt 0:00:46]} Bf5 {[%emt 0:08:50]} 11. Nb3 {[%emt 0:08:34]} Re8 {[%emt 0:01:28]} 12. Nxd4 {[%emt 0:22:04]} Qxd4 {[%emt 0:00:09]} 13. Be3 {[%emt 0:02:48]} Qxb2 {[%emt 0:02:35]} 14. Rb1 {[%emt 0:00:18]} Qxa2 {[%emt 0:01:00]} 15. Rxb7 {[%emt 0:00:08]} c5 {[%emt 0:03:24]} 16. Bf3 $14 {[%emt 0:01:12]} Rac8 {[%emt 0:03:31]} 17. h3 {[%emt 0:05:35]} Red8 {[%emt 0:08:51]} 18. Qa1 {[%emt 0:04:04]} Qxa1 {[%emt 0:00:47]} 19. Rxa1 {[%emt 0:01:04]} Bxd3 {[%emt 0:01:52]} 20. Ra4 {[%emt 0:06:04]} h6 {[%emt 0:12:53]} 21. Rbxa7 {[%emt 0:03:05]} Rd7 {[%emt 0:06:36]} 22. R7a5 {[%emt 0:08:55]} Rdc7 {[%emt 0:02:21]} 23. Bf4 {[%emt 0:01:01]} Re7 {[%emt 0:00:15]} 24. Bd6 {[%emt 0:06:31]} Re1+ {[%emt 0:00:26]} 25. Kh2 {[%emt 0:00:05]} Rc1 {[%emt 0:01:26]} 26. Rxc5 {[%emt 0:02:46]} Rxc5 {[%emt 0:00:59]} 27. Bxc5 {[%emt 0:00:11]} Rxc4 {[%emt 0:01:53]} 28. Ra8+ {[%emt 0:00:27]} Kh7 {[%emt 0:00:07]} 29. Be3 {[%emt 0:00:05]} Be4 {[%emt 0:02:47]} 30. Bxe4+ {[%emt 0:00:08]} Nxe4 {[%emt 0:01:15]} 31. Ra7 {[%emt 0:02:32]} Kg6 {[%emt 0:00:17]} 32. Ra6+ {[%emt 0:00:25]} 1/2-1/2

[Event "WJCC U20 Girls 2019"]
[Site "New Delhi"]
[Date "2019.10.17"]
[Round "3.38"]
[White "Nomindalai Tumurbaatar"]
[Black "Punsalan, Vyanla M"]
[Result "1-0"]
[ECO "A80"]
[WhiteElo "2061"]
[BlackElo "1964"]
[Annotator "NA"]
[PlyCount "65"]
[EventDate "2019.10.15"]
[EventType "swiss"]
[EventCountry "IND"]
[SourceTitle "playchess.com"]
[Source "ChessBase"]
[SourceQuality "1"]
[TimeControl "40/5400+30:1800+30"]

1. d4 {[%emt 0:00:00]} f5 {[%emt 0:00:00]} 2. Bf4 {[%emt 0:00:00]} Nf6 {[%emt 0:00:20]} 3. e3 {[%emt 0:00:12]} g6 {[%emt 0:00:47]} 4. Be2 {[%emt 0:02:28]} Bg7 {[%emt 0:01:10]} 5. h4 {[%emt 0:01:10]} h6 {[%emt 0:00:58]} 6. Nc3 {[%emt 0:04:54]} d6 {[%emt 0:01:24]} 7. Qd2 {[%emt 0:04:00]} c6 {[%emt 0:02:01]} 8. f3 {[%emt 0:02:25]} b5 {[%emt 0:04:01]} 9. a3 {[%emt 0:06:00]} Nh5 {[%emt 0:10:49]} 10. Bh2 {[%emt 0:03:50]} e5 {[%emt 0:06:10]} 11. O-O-O {[%emt 0:04:11]} exd4 {[%emt 0:12:48]} 12. exd4 {[%emt 0:00:12]} Qxh4 $18 {[%emt 0:18:41]} (12... O-O {might work better.}) 13. Nxb5 {[%emt 0:03:02]} cxb5 {[%emt 0:06:20]} 14. Bxb5+ {[%emt 0:00:06]} Nd7 {[%emt 0:00:44]} 15. Re1+ {[%emt 0:00:44]} Kd8 {[%emt 0:01:20]} 16. Ne2 {[%emt 0:08:32]} Qg5 {[%emt 0:03:29]} 17. f4 {[%emt 0:08:10]} Qf6 {[%emt 0:00:46]} 18. Qa5+ {[%emt 0:00:34]} Nb6 {[%emt 0:00:33]} 19. Bc6 {[%emt 0:00:18]} Rb8 {[%emt 0:03:04]} 20. Qxa7 {[%emt 0:00:42]} Nd7 {[%emt 0:00:14]} 21. Qa5+ {[%emt 0:03:09]} Nb6 {[%emt 0:00:59]} 22. Nc3 {[%emt 0:02:10]} Bd7 {[%emt 0:06:23]} 23. Bxd7 {[%emt 0:01:58]} Kxd7 {[%emt 0:00:15]} 24. Qa7+ {[%emt 0:00:05]} Kc6 {[%emt 0:03:21]} 25. Re7 {[%emt 0:00:43]} Qxe7 {[%emt 0:02:56]} 26. Qxe7 {[%emt 0:00:19]} Rhe8 {[%emt 0:00:29]} 27. Qf7 {[%emt 0:00:11]} Bxd4 {[%emt 0:00:43]} 28. Rd1 {[%emt 0:03:08]} Be3+ {[%emt 0:01:09]} 29. Kb1 {[%emt 0:00:03]} Nxf4 {[%emt 0:01:17]} 30. a4 {[%emt 0:03:00]} Re5 {[%emt 0:03:23]} 31. Nb5 {[%emt 0:03:11]} Rxb5 {[%emt 0:04:05]} 32. axb5+ {[%emt 0:00:10]} Kxb5 {[%emt 0:00:18]} 33. Qb3+ {[%emt 0:00:05]} 1-0